bitfinex-derivatives/quotes_BTCF0:USTF0_20241013
["timestamp","ask_amount","ask_price","bid_price","bid_amount"]
[1728856528371,0.079413,62977.0,62976.0,0.0111]
[1728856528578,0.079422,62970.0,62969.0,0.0111]
[1728856528774,0.079424,62969.0,62968.0,0.079424]
[1728856528966,0.19774552,62969.0,62963.0,0.033]
[1728856529173,0.19774552,62969.0,62963.0,0.079431]
[1728856529174,0.079431,62964.0,62963.0,0.079431]
[1728856529372,0.19775252,62964.0,62963.0,0.079431]
[1728856529567,0.47912152,62964.0,62959.0,0.086836]
[1728856529767,0.17440012,62960.0,62959.0,0.196836]
[1728856529971,0.11832152,62960.0,62959.0,0.189436]
[1728856530176,0.10432152,62960.0,62959.0,0.189436]
[1728856530371,0.01667898,62960.0,62959.0,0.189436]
[1728856530676,0.01667898,62960.0,62959.0,0.21787655]
[1728856530874,0.13500689,62960.0,62959.0,0.21787655]
[1728856531077,0.18375652,62960.0,62959.0,0.10787655]
[1728856531380,0.18375652,62960.0,62959.0,0.02844055]
[1728856531583,0.18475652,62960.0,62959.0,0.008]
[1728856532082,0.16811516,62960.0,62959.0,0.008]
[1728856532386,0.20061516,62960.0,62959.0,0.008]
[1728856532786,0.079444,62953.0,62952.0,0.0111]
[1728856533083,0.079451,62947.0,62946.0,0.079452]
[1728856533378,0.079451,62947.0,62939.0,0.0111]
[1728856533379,0.07946,62940.0,62939.0,0.0111]
[1728856533579,0.07946,62940.0,62939.0,0.079461]
[1728856533777,0.07946,62940.0,62934.0,0.1731]
[1728856533778,0.079463,62938.0,62936.0,0.079465]
[1728856534181,0.079463,62938.0,62937.0,0.079464]
[1728856534768,0.076463,62938.0,62937.0,0.079464]
[1728856535480,0.076463,62938.0,62937.0,0.081464]
[1728856535481,0.077463,62938.0,62937.0,0.081464]
[1728856536075,0.077463,62938.0,62937.0,0.002]
[1728856537080,0.078463,62938.0,62937.0,0.002]
[1728856541189,0.439263,62938.0,62937.0,0.002]
[1728856542690,0.599263,62938.0,62937.0,0.002]
[1728856545499,1.675943,62938.0,62929.0,0.0111]
[1728856545787,1.675943,62938.0,62924.0,0.0037]
[1728856545788,0.079479,62925.0,62924.0,0.0037]
[1728856546003,0.079489,62918.0,62913.0,0.0962]
[1728856546786,0.079489,62918.0,62917.0,0.079489]
[1728856547692,0.080489,62918.0,62917.0,0.079489]
[1728856547892,0.081489,62918.0,62917.0,0.079489]
[1728856551895,0.081489,62918.0,62913.0,0.12448152]
[1728856552189,0.079493,62914.0,62913.0,0.111792]
[1728856552387,0.03971819,62914.0,62913.0,0.111792]
[1728856552887,0.03971819,62914.0,62913.0,0.079492]
[1728856553490,0.04071819,62914.0,62913.0,0.079492]
[1728856554487,0.04171819,62914.0,62913.0,0.079492]
[1728856561787,0.3608,62919.0,62913.0,0.11560569]
[1728856561986,0.3608,62919.0,62918.0,0.079488]
[1728856562393,0.3608,62919.0,62918.0,0.19503314]
[1728856562702,0.0008,62925.0,62924.0,0.07948]
[1728856562892,0.0074,62933.0,62930.0,0.079473]
[1728856563199,0.440265,62937.0,62930.0,0.27321317]
[1728856563395,0.440265,62937.0,62930.0,0.2889803]
[1728856563705,0.3608,62937.0,62930.0,0.2889803]
[1728856564098,0.00338399,62931.0,62930.0,0.2889803]
[1728856564303,0.00338399,62931.0,62930.0,0.19441697]
[1728856565001,0.001,62931.0,62930.0,0.19441697]
[1728856566096,0.002,62931.0,62930.0,0.19641697]
[1728856567296,0.002,62931.0,62930.0,0.29101139]
[1728856568704,0.002,62931.0,62930.0,0.29096473]
[1728856570106,0.002,62931.0,62930.0,0.081473]
[1728856578307,0.002,62931.0,62930.0,0.14453514]
[1728856579214,0.002,62931.0,62930.0,0.081473]
[1728856579712,0.002,62931.0,62930.0,0.14453514]
[1728856580113,0.002,62931.0,62930.0,0.081473]
[1728856586313,0.002,62931.0,62930.0,0.12881798]
[1728856587423,0.002,62931.0,62930.0,0.081473]
[1728856589825,0.002,62931.0,62930.0,0.442273]
[1728856592328,0.0326996,62931.0,62930.0,0.442273]
[1728856592537,0.03269999,62931.0,62930.0,0.442273]
[1728856599124,0.03269999,62931.0,62930.0,0.081473]
[1728856599928,0.079468,62934.0,62930.0,0.11738057]
[1728856600138,0.079468,62934.0,62933.0,0.079469]
[1728856600329,0.079468,62934.0,62933.0,0.19484957]
[1728856601036,0.080468,62934.0,62933.0,0.19484957]
[1728856601824,0.079468,62934.0,62933.0,0.2740297]
[1728856602036,0.080468,62934.0,62933.0,0.19584957]
[1728856602230,0.081468,62934.0,62933.0,0.19684957]
[1728856602432,0.002,62934.0,62933.0,0.27602826]
[1728856602632,0.002,62934.0,62933.0,0.19684957]
[1728856606944,0.002,62934.0,62933.0,0.10957182]
[1728856612343,0.002,62934.0,62933.0,0.21957182]
[1728856617149,0.002,62934.0,62933.0,0.58037182]
[1728856618946,0.002,62934.0,62933.0,0.47037182]
[1728856624952,0.002,62934.0,62933.0,0.4753416]
[1728856626450,0.002,62934.0,62933.0,0.48329308]
[1728856627259,0.002,62934.0,62933.0,0.47534149]
[1728856627444,0.002,62934.0,62933.0,0.6774285]
[1728856630254,0.002,62934.0,62933.0,0.48329297]
[1728856630843,0.002,62934.0,62933.0,0.47037182]
[1728856631054,0.002,62934.0,62933.0,0.48329297]
[1728856634656,0.002,62934.0,62933.0,0.47037182]
[1728856635051,0.002,62934.0,62933.0,0.48329307]
[1728856636450,0.002,62934.0,62933.0,0.47534153]
[1728856637365,0.002,62934.0,62933.0,0.59039339]
[1728856638356,0.002,62934.0,62933.0,0.5903934]
[1728856638761,0.002,62934.0,62933.0,0.59039336]
[1728856639158,0.002,62934.0,62933.0,0.59834485]
[1728856639457,0.002,62934.0,62933.0,0.30392694]
[1728856639658,0.0958,62934.0,62933.0,0.10957182]
[1728856646359,0.12649991,62934.0,62933.0,0.10957182]
[1728856646869,0.0958,62934.0,62933.0,0.10957182]
[1728856664995,0.0643,62934.0,62933.0,0.10957182]
[1728856667192,0.0322,62934.0,62933.0,0.10957182]
[1728856667699,0.0628997,62934.0,62933.0,0.10957182]
[1728856670498,0.06289989,62934.0,62933.0,0.10957182]
[1728856672388,0.111668,62934.0,62933.0,0.10957182]
[1728856672588,0.14236744,62934.0,62933.0,0.10957182]
[1728856675289,0.1423682,62934.0,62933.0,0.10957182]
[1728856675493,0.1423682,62934.0,62933.0,0.18870626]
[1728856675494,0.111668,62934.0,62933.0,0.18870626]
[1728856675690,0.111668,62934.0,62933.0,0.10957182]
[1728856675900,0.111668,62934.0,62933.0,0.18870626]
[1728856676302,0.111668,62934.0,62933.0,0.30406824]
[1728856676501,0.111668,62934.0,62933.0,0.18870626]
[1728856677692,0.111668,62934.0,62933.0,0.22493655]
[1728856678003,0.111668,62934.0,62933.0,0.18870626]
[1728856678202,0.111668,62934.0,62933.0,0.10957182]
[1728856682502,0.14236865,62934.0,62933.0,0.10957182]
[1728856683407,0.14236886,62934.0,62933.0,0.10957182]
[1728856685707,0.03270086,62934.0,62933.0,0.58037182]
[1728856685905,0.002,62934.0,62933.0,0.58037182]
[1728856689908,0.002,62934.0,62933.0,0.47037182]
[1728856690109,0.002,62934.0,62933.0,0.10957182]
[1728856695715,0.081468,62934.0,62933.0,0.10957182]
[1728856696023,0.002,62934.0,62933.0,0.10957182]
[1728856696212,0.002,62934.0,62933.0,0.17285326]
[1728856696412,0.002,62934.0,62933.0,0.10957182]
[1728856713225,0.002,62934.0,62933.0,0.18870626]
[1728856715527,0.002,62934.0,62933.0,0.30397701]
[1728856716632,0.002,62934.0,62933.0,0.22484257]
[1728856717024,0.002,62934.0,62933.0,0.30397291]
[1728856717435,0.002,62934.0,62933.0,0.30398771]
[1728856718829,0.002,62934.0,62933.0,0.22485737]
[1728856719040,0.002,62934.0,62933.0,0.30400131]
[1728856719333,0.002,62934.0,62933.0,0.22485737]
[1728856719524,0.03269924,62934.0,62933.0,0.10957182]
[1728856727535,0.03269924,62934.0,62933.0,0.22487323]
[1728856727536,0.002,62934.0,62933.0,0.22487323]
[1728856729137,0.002,62934.0,62933.0,0.30399798]
[1728856729339,0.002,62934.0,62933.0,0.22487323]
[1728856729540,0.081468,62934.0,62933.0,0.22487323]
[1728856729741,0.081468,62934.0,62933.0,0.03010282]
[1728856734744,0.11216852,62934.0,62933.0,0.03010282]
[1728856736845,0.11216851,62934.0,62933.0,0.03010282]
[1728856738347,0.081468,62934.0,62933.0,0.03010282]
[1728856738651,0.11216855,62934.0,62933.0,0.03010282]
[1728856739751,0.11216908,62934.0,62933.0,0.03010282]
[1728856740951,0.11216906,62934.0,62933.0,0.03010282]
[1728856742549,0.081468,62934.0,62933.0,0.03010282]
[1728856744352,0.081468,62934.0,62933.0,0.09337829]
[1728856744559,0.081468,62934.0,62933.0,0.03010282]
[1728856744952,0.081468,62934.0,62933.0,0.09337903]
[1728856745153,0.081468,62934.0,62933.0,0.03010282]
[1728856745457,0.081468,62934.0,62933.0,0.09337771]
[1728856746149,0.081468,62934.0,62933.0,0.0933777]
[1728856746352,0.081468,62934.0,62933.0,0.03010282]
[1728856746555,0.081468,62934.0,62933.0,0.10957182]
[1728856747457,0.081468,62934.0,62933.0,0.17284722]
[1728856747662,0.081468,62934.0,62933.0,0.10957182]
[1728856765766,0.081468,62934.0,62933.0,0.22476969]
[1728856769372,0.04170563,62934.0,62933.0,0.22476969]
[1728856770679,0.04170563,62934.0,62933.0,0.30379953]
[1728856770979,0.04170563,62934.0,62933.0,0.18860166]
[1728856771195,0.04170563,62934.0,62933.0,0.10957182]
[1728856772787,0.04170563,62934.0,62933.0,0.002]
[1728856772988,0.07240717,62934.0,62933.0,0.002]
[1728856775582,0.43320717,62934.0,62933.0,0.002]
[1728856779092,0.43320847,62934.0,62933.0,0.002]
[1728856779500,0.40250563,62934.0,62933.0,0.002]
[1728856779800,0.43320853,62934.0,62933.0,0.002]
[1728856780200,0.40250563,62934.0,62933.0,0.002]
[1728856780393,0.04170563,62934.0,62933.0,0.002]
[1728856780596,0.40250563,62934.0,62933.0,0.002]
[1728856780792,0.40250563,62934.0,62933.0,0.06521579]
[1728856782201,0.04170563,62934.0,62933.0,0.002]
[1728856782404,0.40250563,62934.0,62933.0,0.002]
[1728856786303,0.40250563,62934.0,62933.0,0.06521579]
[1728856786497,0.40250563,62934.0,62933.0,0.002]
[1728856786699,0.40250563,62934.0,62933.0,0.06521579]
[1728856786905,0.40250563,62934.0,62933.0,0.002]
[1728856787209,0.40250563,62934.0,62933.0,0.06521579]
[1728856787801,0.40250563,62934.0,62933.0,0.002]
[1728856787802,0.43320848,62934.0,62933.0,0.002]
[1728856788709,0.4332088,62934.0,62933.0,0.002]
[1728856791413,0.40250563,62934.0,62933.0,0.002]
[1728856795307,0.43320915,62934.0,62933.0,0.002]
[1728856795705,0.40250563,62934.0,62933.0,0.002]
[1728856799210,0.04170563,62934.0,62933.0,0.002]
[1728856799409,0.40250563,62934.0,62933.0,0.002]
[1728856800305,1.58918563,62934.0,62933.0,0.002]
[1728856800610,1.58918563,62934.0,62926.0,0.0037]
[1728856800611,0.11,62927.0,62926.0,0.0037]
[1728856800911,0.079482,62923.0,62922.0,0.04739646]
[1728856801104,0.079483,62922.0,62920.0,0.04739646]
[1728856801413,0.299482,62923.0,62920.0,0.04739646]
[1728856801414,0.299484,62921.0,62920.0,0.04739646]
[1728856802307,0.079487,62919.0,62918.0,0.04739646]
[1728856802506,0.550287,62919.0,62918.0,0.04739646]
[1728856802802,0.550287,62919.0,62912.0,0.0037]
[1728856802803,0.079494,62913.0,62912.0,0.0037]
[1728856803002,0.079495,62912.0,62911.0,0.04739646]
[1728856803204,0.079495,62912.0,62911.0,0.07674107]
[1728856803410,0.079495,62912.0,62911.0,0.02934461]
[1728856803614,0.11,62913.0,62910.0,0.18839346]
[1728856803615,0.079497,62911.0,62910.0,0.18839346]
[1728856803806,0.079497,62911.0,62910.0,0.140997]
[1728856804812,0.079497,62911.0,62910.0,0.10747861]
[1728856805408,0.080497,62911.0,62910.0,0.10747861]
[1728856805916,0.081497,62911.0,62910.0,0.10947861]
[1728856808199,0.191497,62911.0,62910.0,0.10947861]
[1728856809218,0.081497,62911.0,62910.0,0.10947861]
[1728856809416,0.191497,62911.0,62910.0,0.10947861]
[1728856810517,0.081497,62911.0,62910.0,0.10947861]
[1728856810711,0.191497,62911.0,62910.0,0.10947861]
[1728856810915,0.191497,62911.0,62910.0,0.02998161]
[1728856814519,0.04171944,62911.0,62910.0,0.02998161]
[1728856814706,0.15171944,62911.0,62910.0,0.02998161]
[1728856816715,0.15171944,62911.0,62910.0,0.10947961]
[1728856817419,0.3719,62921.0,62910.0,0.10947961]
[1728856817420,0.0111,62921.0,62910.0,1.65715961]
[1728856817623,0.0074,62923.0,62922.0,0.079483]
[1728856817822,0.4708,62929.0,62928.0,0.079475]
[1728856819314,0.4718,62929.0,62928.0,0.079475]
[1728856820516,0.115,62929.0,62928.0,0.079475]
[1728856821128,0.0074,62936.0,62928.0,0.079475]
[1728856821316,0.11,62938.0,62937.0,0.079464]
[1728856823226,0.11,62938.0,62937.0,0.081464]
[1728856824626,0.11,62938.0,62937.0,0.082464]
[1728856824927,0.11,62938.0,62937.0,0.084464]
[1728856825825,0.3608,62941.0,62940.0,0.07946]
[1728856826017,0.5015039,62941.0,62940.0,0.07946]
[1728856827346,0.1437039,62941.0,62940.0,0.07946]
[1728856827725,0.2231629,62941.0,62940.0,0.07946]
[1728856830120,0.22316466,62941.0,62940.0,0.07946]
[1728856831939,0.14370566,62941.0,62940.0,0.07946]
[1728856832338,0.113,62941.0,62940.0,0.07946]
[1728856834037,0.003,62941.0,62940.0,0.07946]
[1728856840729,0.0074,62948.0,62947.0,0.079451]
[1728856840929,0.00238362,62955.0,62954.0,0.079442]
[1728856841130,0.00238362,62955.0,62954.0,0.550242]
[1728856841347,0.00238362,62955.0,62954.0,1.626762]
[1728856841737,0.11,62956.0,62955.0,0.079441]
[1728856842637,0.18944,62956.0,62955.0,0.079441]
[1728856843146,0.07944,62956.0,62955.0,0.079441]
[1728856845138,0.08144,62956.0,62955.0,0.079441]
[1728856846332,0.002,62956.0,62955.0,0.079441]
[1728856846730,0.08144,62956.0,62955.0,0.079441]
[1728856848140,0.002,62956.0,62955.0,0.079441]
[1728856856949,0.002,62956.0,62955.0,0.440241]
[1728856861252,0.002,62956.0,62955.0,1.516761]
[1728856861456,0.002,62956.0,62955.0,1.626761]
[1728856864254,0.002,62956.0,62955.0,1.63172898]
[1728856864560,0.002,62956.0,62955.0,1.626761]
[1728856864761,0.002,62956.0,62955.0,1.63172898]
[1728856866250,0.002,62956.0,62955.0,1.63172897]
[1728856867155,0.002,62956.0,62955.0,1.74172897]
[1728856867362,0.002,62956.0,62955.0,1.63172897]
[1728856867860,0.002,62956.0,62955.0,1.03172897]
[1728856868061,0.002,62956.0,62955.0,0.92172897]
[1728856868245,0.002,62956.0,62955.0,0.440241]
[1728856868246,0.08144,62956.0,62955.0,0.440241]
[1728856868646,0.14234,62956.0,62955.0,0.440241]
[1728856869945,0.14234,62956.0,62955.0,0.079441]
[1728856871050,0.14234,62956.0,62955.0,0.12665373]
[1728856871446,0.14234,62956.0,62955.0,0.079441]
[1728856871758,0.14234,62956.0,62955.0,0.12665373]
[1728856872250,0.14234,62956.0,62955.0,0.079441]
[1728856872452,0.14234,62956.0,62955.0,0.12665373]
[1728856872651,0.14234,62956.0,62955.0,0.079441]
[1728856874849,0.14234,62956.0,62955.0,0.12680348]
[1728856875652,0.14234,62956.0,62955.0,0.079441]
[1728856876364,0.14234,62956.0,62955.0,0.12680488]
[1728856876758,0.14234,62956.0,62955.0,0.079441]
[1728856877167,0.14234,62956.0,62955.0,0.12680494]
[1728856877659,0.14234,62956.0,62955.0,0.12680619]
[1728856877960,0.14234,62956.0,62955.0,0.079441]
[1728856878866,0.0629,62956.0,62955.0,0.079441]
[1728856882267,0.0639,62956.0,62955.0,0.082441]
[1728856883361,0.0629,62956.0,62955.0,0.088441]
[1728856883967,0.0609,62956.0,62955.0,0.079441]
[1728856884168,0.0629,62956.0,62955.0,0.088441]
[1728856885066,0.02315354,62956.0,62955.0,0.20110382]
[1728856885465,0.02315354,62956.0,62955.0,0.28000524]
[1728856885770,0.02315354,62956.0,62955.0,0.20110382]
[1728856886268,0.02315354,62956.0,62955.0,0.28000269]
[1728856886468,0.02315354,62956.0,62955.0,0.28000379]
[1728856886773,0.02315354,62956.0,62955.0,0.20110382]
[1728856886974,0.02315354,62956.0,62955.0,0.28000101]
[1728856887365,0.02315354,62956.0,62955.0,0.2799977]
[1728856887964,0.02315354,62956.0,62955.0,0.2799973]
[1728856888168,0.02315354,62956.0,62955.0,0.27999859]
[1728856888361,0.02315354,62956.0,62955.0,0.20110382]
[1728856889165,0.02315354,62956.0,62955.0,0.27999623]
[1728856889478,0.02315354,62956.0,62955.0,0.13029623]
[1728856889479,1.53991354,62956.0,62955.0,0.13029623]
[1728856889675,0.079445,62952.0,62943.0,0.09495154]
[1728856889870,0.47656,62955.0,62940.0,0.09495154]
[1728856889871,0.079458,62942.0,62940.0,0.09495154]
[1728856890170,0.440259,62941.0,62935.0,0.09495154]
[1728856890368,0.11,62938.0,62935.0,0.09473832]
[1728856890569,0.11,62938.0,62932.0,0.09473832]
[1728856890776,0.079469,62933.0,62932.0,0.09473832]
[1728856891371,0.11,62934.0,62931.0,0.1082942]
[1728856891577,0.11,62934.0,62932.0,0.09465856]
[1728856891769,0.11,62934.0,62931.0,0.20295276]
[1728856891968,0.001,62933.0,62932.0,0.012]
[1728856892165,0.001,62938.0,62932.0,0.10665856]
[1728856892365,0.0074,62943.0,62942.0,0.079458]
[1728856892565,0.079449,62949.0,62948.0,0.07945]
[1728856892872,0.11,62952.0,62951.0,0.079446]
[1728856893066,0.07944,62956.0,62954.0,0.079442]
[1728856893476,0.11238345,62955.0,62954.0,0.079442]
[1728856893868,0.00238345,62955.0,62954.0,0.079442]
[1728856894772,0.00438345,62955.0,62954.0,0.079442]
[1728856895276,0.00438345,62955.0,62954.0,0.110542]
[1728856895484,0.00438345,62955.0,62954.0,0.141642]
[1728856895670,0.00438345,62955.0,62954.0,0.173242]
[1728856896380,0.00238345,62955.0,62954.0,0.174242]
[1728856896967,0.00238345,62955.0,62954.0,0.176242]
[1728856897175,0.08182445,62955.0,62954.0,0.176242]
[1728856897482,0.00238345,62955.0,62954.0,0.175242]
[1728856897682,0.00238345,62955.0,62954.0,0.174242]
[1728856897883,0.00238345,62955.0,62954.0,0.176242]
[1728856898278,0.00238345,62955.0,62954.0,0.22355489]
[1728856898579,0.00238345,62955.0,62954.0,0.174242]
[1728856898785,0.00338345,62955.0,62954.0,0.176242]
[1728856900083,0.3616,62962.0,62961.0,0.079434]
[1728856900084,0.3608,62962.0,62961.0,0.079434]
[1728856900281,0.0074,62971.0,62962.0,0.079432]
[1728856900493,0.03103877,62970.0,62968.0,0.3608]
[1728856900783,0.24179793,62976.0,62973.0,0.079418]
[1728856900983,0.03108687,62975.0,62973.0,0.079418]
[1728856901186,0.24179793,62976.0,62969.0,0.0622]
[1728856901481,0.16238293,62976.0,62975.0,0.079416]
[1728856902088,0.01638293,62976.0,62975.0,0.079416]
[1728856903196,0.01738293,62976.0,62975.0,0.079416]
[1728856903699,0.00338293,62976.0,62975.0,0.079416]
[1728856904700,0.00338293,62976.0,62975.0,0.081416]
[1728856904898,0.00338293,62976.0,62975.0,0.11057349]
[1728856912208,0.001,62976.0,62975.0,0.11057349]
[1728856915016,0.001,62976.0,62975.0,0.47137349]
[1728856922224,0.3518,62986.0,62985.0,0.079403]
[1728856922723,0.0037,62989.0,62988.0,0.0794]
[1728856922915,0.079396,62991.0,62989.0,0.079398]
[1728856923118,0.18854099,62994.0,62992.0,0.079394]
[1728856923527,0.26793299,62994.0,62992.0,0.079394]
[1728856923818,0.26793299,62994.0,62993.0,0.079393]
[1728856924026,0.3608,62995.0,62991.0,0.16]
[1728856924214,0.3608,62995.0,62994.0,0.239392]
[1728856924414,0.0037,63001.0,62995.0,0.079391]
[1728856924617,0.079388,62998.0,62995.0,0.079391]
[1728856925216,0.079388,62998.0,62996.0,0.079389]
[1728856925630,0.079388,62998.0,62997.0,0.079388]
[1728856926722,0.1637,63004.0,62996.0,0.16]
[1728856926927,0.3608,63011.0,62996.0,0.16]
[1728856926928,0.079382,63002.0,63001.0,0.079382]
[1728856928823,0.007,63002.0,63001.0,0.080382]
[1728856929827,0.01,63002.0,63001.0,0.080382]
[1728856930526,0.0037,63008.0,63001.0,1.156542]
[1728856930732,0.3608,63018.0,63012.0,0.079369]
[1728856930733,0.0037,63013.0,63012.0,0.079369]
[1728856930918,0.079364,63016.0,63014.0,0.079367]
[1728856931835,0.114756,63023.0,63014.0,0.079367]
[1728856932126,0.079364,63016.0,63014.0,0.079367]
[1728856932320,0.079364,63016.0,63014.0,0.112367]
[1728856932726,0.01238119,63015.0,63014.0,0.113367]
[1728856932922,0.01238119,63015.0,63014.0,0.146467]
[1728856933231,0.02638119,63015.0,63014.0,0.147467]
[1728856935329,0.024,63015.0,63014.0,0.147467]
[1728856935631,0.024,63015.0,63014.0,0.17614096]
[1728856937032,0.01,63015.0,63014.0,0.17514096]
[1728856937227,0.021,63015.0,63014.0,0.17614096]
[1728856937726,0.011,63015.0,63014.0,0.17514096]
[1728856937925,0.014,63015.0,63014.0,0.17614096]
[1728856939021,0.014,63015.0,63014.0,1.25222096]
[1728856939425,0.014,63015.0,63014.0,0.65222096]
[1728856940936,0.014,63015.0,63014.0,0.17614096]
[1728856941233,0.014,63015.0,63014.0,0.14304096]
[1728856941833,0.014,63015.0,63014.0,0.30304096]
[1728856943628,0.014,63015.0,63014.0,0.14304096]
[1728856943828,0.014,63015.0,63014.0,0.30304096]
[1728856947230,0.0037,63023.0,63014.0,0.06367396]
[1728856947430,0.0037,63027.0,63026.0,0.079352]
[1728856947633,0.079349,63028.0,63026.0,0.079352]
[1728856948738,0.079349,63028.0,63027.0,0.07935]
[1728856949130,0.082349,63028.0,63027.0,0.07935]
[1728856949740,0.093349,63028.0,63027.0,0.07935]
[1728856950430,0.082349,63028.0,63027.0,0.08035]
[1728856950629,0.093349,63028.0,63027.0,0.08035]
[1728856951034,0.090349,63028.0,63027.0,0.08135]
[1728856951437,0.090349,63028.0,63027.0,0.002]
[1728856951742,0.090349,63028.0,63020.0,0.0037]
[1728856951743,0.079358,63021.0,63020.0,0.0037]
[1728856951939,0.079358,63021.0,63013.0,0.0037]
[1728856951940,0.440158,63021.0,63013.0,0.0037]
[1728856952135,0.079372,63010.0,63009.0,0.083072]
[1728856952334,0.079372,63010.0,63009.0,0.239372]
[1728856953236,0.079372,63010.0,63009.0,0.16]
[1728856953541,0.079373,63009.0,63008.0,0.3608]
[1728856953841,0.079378,63005.0,63004.0,0.16]
[1728856954232,0.079378,63005.0,63004.0,0.239379]
[1728856954838,0.079378,63005.0,63004.0,0.16]
[1728856955139,0.079378,63005.0,63000.0,0.16]
[1728856955341,0.079383,63002.0,63001.0,0.079382]
[1728856956341,0.079383,63002.0,63001.0,0.003]
[1728856957539,0.080383,63002.0,63001.0,0.003]
[1728856958442,0.11342415,63002.0,63001.0,0.003]
[1728856959949,0.11342415,63002.0,62994.0,0.083092]
[1728856959950,0.079391,62995.0,62994.0,0.0037]
[1728856960137,0.079391,62995.0,62992.0,0.079394]
[1728856960138,0.079393,62993.0,62992.0,0.079394]
[1728856960337,0.239393,62993.0,62992.0,0.02858501]
[1728856960535,1.315633,62993.0,62992.0,0.02858501]
[1728856961049,1.315633,62993.0,62990.0,0.079396]
[1728856961050,0.079396,62991.0,62990.0,0.079396]
[1728856962946,0.16,62993.0,62988.0,0.02929883]
[1728856962947,0.079398,62989.0,62988.0,0.02929883]
[1728856963148,0.16,62993.0,62987.0,0.04729778]
[1728856963149,0.001,62991.0,62987.0,0.0794]
[1728856963344,0.0794,62988.0,62987.0,0.0794]
[1728856963545,0.0794,62988.0,62987.0,0.12669778]
[1728856964452,0.0794,62988.0,62987.0,0.0794]
[1728856964643,0.0794,62988.0,62987.0,0.0884]
[1728856966343,0.1637,62997.0,62987.0,0.021]
[1728856966645,0.079395,62992.0,62991.0,0.079395]
[1728856968451,0.079395,62992.0,62991.0,0.084395]
[1728856968846,0.07939,62996.0,62994.0,0.079391]
[1728856969052,0.07939,62996.0,62991.0,0.007]
[1728856969253,0.07939,62996.0,62995.0,0.079391]
[1728856969954,0.0654,63004.0,62997.0,0.079388]
[1728856969955,0.079384,63000.0,62997.0,0.079388]
[1728856970156,0.079386,62999.0,62997.0,0.079388]
[1728856970459,0.079387,62998.0,62997.0,0.079388]
[1728856971955,0.079387,62998.0,62997.0,0.082388]
[1728856972254,0.0037,63004.0,62997.0,0.009]
[1728856972455,0.079383,63002.0,63001.0,0.079381]
[1728856972662,0.239383,63002.0,63001.0,0.079381]
[1728856973858,0.239383,63002.0,63001.0,0.081381]
[1728856974651,0.240383,63002.0,63001.0,0.081381]
[1728856975148,0.240383,63002.0,63001.0,0.079381]
[1728856975454,0.240383,63002.0,63001.0,0.081381]
[1728856975862,0.239383,63002.0,63001.0,0.081381]
[1728856976055,0.240383,63002.0,63001.0,0.081381]
[1728856979765,0.080383,63002.0,63001.0,0.081381]
[1728856981454,0.001,63002.0,63001.0,0.081381]
[1728856982157,0.001,63002.0,63001.0,0.143781]
[1728856982467,0.00238136,63008.0,63001.0,0.0644]
[1728856982657,0.00238136,63008.0,63007.0,0.079376]
[1728856983366,0.0037,63016.0,63015.0,0.079366]
[1728856983664,0.0037,63024.0,63023.0,0.079355]
[1728856983854,0.16,63025.0,63019.0,0.0037]
[1728856984054,0.00238032,63029.0,63017.0,0.0037]
[1728856984055,0.079362,63018.0,63017.0,0.0037]
[1728856985453,0.079362,63018.0,63017.0,0.0047]
[1728856986364,0.3608,63026.0,63017.0,0.0047]
[1728856986656,0.00238032,63029.0,63027.0,0.07935]
[1728856986961,0.60252832,63029.0,63028.0,0.0323]
[1728856987265,0.600148,63029.0,63028.0,0.0323]
[1728856987558,0.600148,63029.0,63021.0,0.0037]
[1728856987559,0.079357,63022.0,63021.0,0.0037]
[1728856987765,0.079362,63018.0,63014.0,0.0037]
[1728856987968,0.079362,63018.0,63011.0,0.0308]
[1728856988152,0.239362,63018.0,63015.0,0.079365]
[1728856988465,0.16,63018.0,63015.0,0.079365]
[1728856988673,0.079364,63016.0,63015.0,0.079365]
[1728856989061,0.440157,63022.0,63021.0,0.079358]
[1728856989062,0.3608,63022.0,63021.0,0.079358]
[1728856989367,0.0037,63030.0,63029.0,0.079348]
[1728856989557,0.079349,63028.0,63027.0,0.0037]
[1728856989756,0.239349,63028.0,63027.0,0.0037]
[1728856990563,0.3608,63033.0,63027.0,0.0037]
[1728856990751,0.079346,63031.0,63030.0,0.079347]
[1728856991474,0.0037,63041.0,63030.0,1.59676]
[1728856991665,0.0037,63041.0,63040.0,0.079334]
[1728856991962,0.3608,63043.0,63042.0,0.079332]
[1728856992182,0.3608,63043.0,63033.0,0.0037]
[1728856992355,0.3608,63043.0,63034.0,0.16]
[1728856992558,0.3608,63043.0,63033.0,0.0037]
[1728856992559,0.004,63041.0,63035.0,0.16]
[1728856992765,0.004,63041.0,63038.0,0.16]
[1728856993066,0.004,63041.0,63038.0,0.5208]
[1728856993762,0.004,63041.0,63038.0,0.3608]
[1728856994064,0.440131,63043.0,63038.0,0.3608]
[1728856994265,0.444131,63043.0,63042.0,0.001]
[1728856994657,0.444131,63043.0,63038.0,0.3608]
[1728856994861,0.3608,63043.0,63038.0,0.3618]
[1728856995068,0.004,63041.0,63038.0,0.3628]
[1728856995266,0.004,63041.0,63039.0,0.079335]
[1728856995774,0.3648,63043.0,63039.0,0.079335]
[1728856996071,0.3648,63043.0,63042.0,0.079332]
[1728856996570,0.3648,63043.0,63038.0,0.001]
[1728856996571,0.3648,63043.0,63038.0,0.602816]
[1728856996772,0.3648,63043.0,63039.0,0.079335]
[1728856996966,0.3648,63043.0,63038.0,0.5218]
[1728856997157,0.004,63043.0,63042.0,0.16]
[1728856997361,0.3608,63056.0,63048.0,0.079324]
[1728856997556,0.3608,63056.0,63048.0,0.239324]
[1728856997557,0.079318,63053.0,63048.0,0.239324]